bitfinex/quotes_BTCUSD_20260215
["timestamp","ask_amount","ask_price","bid_price","bid_amount"]
[1771149172188,0.07100599,70417.0,70415.0,0.13985172]
[1771149172626,0.07100658,70416.0,70415.0,0.14005172]
[1771149173348,0.07100599,70417.0,70415.0,0.14001172]
[1771149174089,0.07100599,70417.0,70415.0,0.13986328]
[1771149174488,0.07100588,70417.0,70415.0,0.13986328]
[1771149175376,0.07100613,70418.0,70415.0,0.13986328]
[1771149175788,4e-05,70420.0,70415.0,0.13986328]
[1771149175988,0.56783514,70443.0,70415.0,0.13986328]
[1771149175989,0.07099866,70424.0,70415.0,0.21308399]
[1771149176132,0.02270301,70427.0,70419.0,0.07050284]
[1771149176133,0.07099722,70426.0,70419.0,0.07050284]
[1771149176338,4e-05,70430.0,70415.0,0.21308399]
[1771149176339,4e-05,70430.0,70420.0,0.07322071]
[1771149176538,0.07103308,70430.0,70424.0,0.07099792]
[1771149176777,0.07103308,70430.0,70423.0,0.07099782]
[1771149177008,0.07099688,70426.0,70421.0,0.0710013]
[1771149177211,0.07099629,70427.0,70421.0,0.07100094]
[1771149177365,0.07099603,70428.0,70422.0,0.07322071]
[1771149177672,0.07099553,70427.0,70422.0,0.14422087]
[1771149178854,0.07103298,70430.0,70425.0,0.07099689]
[1771149179129,4e-05,70430.0,70426.0,0.07099612]
[1771149179310,4e-05,70430.0,70425.0,0.09587104]
[1771149179638,0.07099594,70427.0,70422.0,0.1690949]
[1771149179829,4e-05,70430.0,70422.0,0.09809486]
[1771149180006,0.07099463,70428.0,70423.0,0.07099898]
[1771149180207,0.07099463,70428.0,70422.0,0.1690952]
[1771149180481,0.07099549,70427.0,70422.0,0.07322071]
[1771149180655,0.00151125,70428.0,70416.0,0.39190745]
[1771149180656,0.07100207,70421.0,70416.0,0.07100646]
[1771149180886,0.02421426,70420.0,70416.0,0.07100646]
[1771149181030,0.02421426,70420.0,70415.0,0.21087065]
[1771149181234,0.07251392,70420.0,70415.0,0.21087065]
[1771149181439,0.00151125,70420.0,70415.0,0.21087065]
[1771149181940,0.00151125,70420.0,70416.0,0.07100643]
[1771149182143,0.02270301,70424.0,70415.0,0.13986328]
[1771149182399,0.92899824,70420.0,70419.0,0.07100356]
[1771149183604,0.92899824,70420.0,70419.0,0.07085512]
[1771149184060,0.92899824,70420.0,70415.0,0.08751122]
[1771149184260,0.92899824,70420.0,70415.0,0.37153818]
[1771149184462,0.6334068,70420.0,70419.0,0.07100356]
[1771149184688,0.47472965,70420.0,70419.0,0.07100356]
[1771149185682,0.47512965,70420.0,70419.0,0.07100356]
[1771149187087,0.47512965,70420.0,70419.0,0.07085512]
[1771149187287,0.47512965,70420.0,70415.0,0.08751122]
[1771149187498,0.47512965,70420.0,70418.0,0.0710041]
[1771149187699,0.47512965,70420.0,70415.0,0.08751122]
[1771149187948,0.47512965,70420.0,70419.0,0.07100356]
[1771149188309,0.47512965,70420.0,70419.0,0.07096356]
[1771149188520,0.47512965,70420.0,70418.0,0.07100384]
[1771149189249,0.47512965,70420.0,70419.0,0.07100356]
[1771149190368,0.47512965,70420.0,70416.0,0.07100658]
[1771149190985,0.47512965,70420.0,70417.0,0.07100541]
[1771149191200,0.47512965,70420.0,70419.0,0.07100356]
[1771149191685,0.47512965,70420.0,70418.0,0.07100424]
[1771149194360,0.47512965,70420.0,70419.0,0.07100356]
[1771149194699,0.47512965,70420.0,70418.0,0.07100424]
[1771149194898,0.47512965,70420.0,70419.0,0.07100356]
[1771149195128,0.47512965,70420.0,70418.0,0.07100424]
[1771149196066,0.47512965,70420.0,70419.0,0.07100356]
[1771149196666,0.07139484,70428.0,70422.0,0.0710001]
[1771149196907,0.07099549,70427.0,70420.0,0.0710024]
[1771149197088,0.07099977,70423.0,70418.0,0.60557592]
[1771149197346,0.07099977,70423.0,70417.0,0.41088392]
[1771149197527,0.2840116,70430.0,70417.0,0.41088392]
[1771149197528,0.02319586,70457.0,70441.0,0.11024406]
[1771149197730,0.00044,70460.0,70442.0,0.33988]
[1771149197731,0.11678992,70453.0,70442.0,0.33988]
[1771149197940,0.02319586,70450.0,70440.0,0.60561592]
[1771149198504,0.07097224,70452.0,70440.0,0.60561592]
[1771149198505,0.02319586,70449.0,70440.0,0.60561592]
[1771149198865,0.02330037,70449.0,70443.0,0.07097899]
[1771149199552,0.02330037,70449.0,70447.0,0.07097477]
[1771149199767,0.02330037,70449.0,70448.0,0.06635268]
[1771149202085,0.00010451,70449.0,70448.0,0.06635268]
[1771149202569,0.0004,70454.0,70451.0,0.0709708]
[1771149202794,0.02359586,70454.0,70451.0,0.00012263]
[1771149205613,0.07097021,70453.0,70443.0,0.28391358]
[1771149205809,0.02319586,70451.0,70446.0,0.07097552]
[1771149206239,0.02319586,70451.0,70440.0,0.2839695]
[1771149206240,0.07097417,70449.0,70440.0,4e-05]
[1771149206377,0.02319586,70448.0,70444.0,0.07097835]
[1771149207001,0.02319586,70448.0,70445.0,0.07097731]
[1771149207430,0.02319586,70448.0,70446.0,0.0709763]
[1771149207569,0.02319586,70448.0,70445.0,0.07097731]
[1771149208650,0.02319586,70448.0,70444.0,0.07097809]
[1771149208851,0.02319586,70448.0,70445.0,0.07097731]
[1771149209054,0.02319586,70448.0,70444.0,0.07097809]
[1771149209212,0.02319586,70448.0,70445.0,0.07097711]
[1771149209928,0.02319586,70448.0,70444.0,0.07097809]
[1771149210255,0.02319586,70448.0,70445.0,0.07097697]
[1771149210613,0.02319586,70448.0,70440.0,0.00014451]
[1771149210614,0.02319586,70448.0,70443.0,0.07097914]
[1771149210825,0.02319586,70448.0,70444.0,0.07097823]
[1771149212918,0.02319586,70448.0,70445.0,0.07097715]
[1771149214164,0.02319586,70448.0,70444.0,0.07097823]
[1771149214555,0.28390137,70448.0,70440.0,0.00010451]
[1771149214754,0.07098047,70442.0,70426.0,0.0709965]
[1771149214960,0.02319586,70440.0,70430.0,0.60557592]
[1771149215297,0.00012978,70442.0,70431.0,0.11024406]
[1771149215494,0.02332564,70442.0,70441.0,0.07098138]
[1771149215874,5.5e-05,70445.0,70442.0,0.07098038]
[1771149216057,5.5e-05,70445.0,70441.0,0.07083292]
[1771149216058,0.02319586,70444.0,70440.0,0.07098182]
[1771149216282,0.0709794,70443.0,70437.0,0.07098508]
[1771149216488,0.02319586,70444.0,70440.0,0.07098223]
[1771149216805,0.02319586,70444.0,70440.0,0.07111201]
[1771149217000,0.0709789,70444.0,70440.0,0.00012978]
[1771149217203,0.02319586,70443.0,70440.0,0.00032978]
[1771149218484,0.02319586,70444.0,70440.0,0.00032978]
[1771149218684,0.09417724,70441.0,70440.0,0.00032978]
[1771149221676,0.09417862,70440.0,70435.0,0.07098714]
[1771149222253,0.02319586,70440.0,70436.0,0.07098617]
[1771149223257,0.07097881,70444.0,70439.0,0.07098298]
[1771149223457,0.02396287,70443.0,70439.0,0.07083456]
[1771149223773,0.07098171,70441.0,70436.0,0.07098572]
[1771149223975,0.07098088,70442.0,70436.0,0.07098572]
[1771149224179,0.00012981,70444.0,70442.0,0.07097993]
[1771149224345,0.33988,70448.0,70438.0,0.14997198]
[1771149225011,0.0004,70461.0,70432.0,0.0002]
[1771149225012,0.01207135,70460.0,70444.0,0.02361924]
[1771149225199,0.07096973,70453.0,70447.0,0.0709748]
[1771149225407,0.07097111,70452.0,70447.0,0.0709748]
[1771149225752,0.07097144,70451.0,70446.0,0.07097586]
[1771149225957,0.07097111,70452.0,70446.0,0.07097586]
[1771149226273,0.07097111,70452.0,70438.0,0.001]
[1771149226274,0.33988,70453.0,70435.0,0.147]
[1771149226457,0.33988,70453.0,70433.0,0.07098912]
[1771149226458,0.07098403,70439.0,70433.0,0.07098912]
[1771149226910,0.0949469,70439.0,70436.0,0.0002]
[1771149227866,0.00012983,70453.0,70437.0,0.12635274]
[1771149228070,0.0709767,70446.0,70440.0,0.67579368]
[1771149228277,0.15572,70450.0,70439.0,0.07098321]
[1771149228278,0.07097889,70444.0,70439.0,0.07098321]
[1771149228755,0.07097979,70443.0,70438.0,0.07098406]
[1771149228967,0.02396287,70449.0,70440.0,0.07098207]
[1771149228968,0.07097433,70448.0,70440.0,0.07098207]
[1771149229280,0.07097433,70448.0,70436.0,0.0002]
[1771149229407,0.07098001,70443.0,70438.0,0.07098428]
[1771149229610,0.30786424,70449.0,70436.0,0.0002]
[1771149229611,0.02412547,70449.0,70436.0,0.0002]
[1771149229814,0.02412547,70449.0,70441.0,0.07083234]
[1771149229815,0.0709765,70446.0,70441.0,0.07083234]
[1771149230013,0.07097741,70445.0,70440.0,0.07098078]
[1771149230534,0.0001626,70449.0,70441.0,0.02361924]
[1771149230881,0.0001626,70449.0,70447.0,0.070975]
[1771149231012,0.0004,70451.0,70447.0,0.070975]
[1771149231404,0.00012983,70453.0,70448.0,0.07097347]
[1771149231606,0.00012983,70453.0,70447.0,0.070975]
[1771149231607,0.0004,70459.0,70447.0,0.28389902]
[1771149231804,0.0004,70459.0,70452.0,0.07096946]
[1771149231805,0.07136387,70459.0,70452.0,0.07096946]
[1771149232159,0.06166833,70458.0,70453.0,0.07096921]
[1771149232365,0.07136387,70459.0,70453.0,0.07096921]
[1771149232660,0.07136327,70459.0,70454.0,0.0709682]
[1771149232864,0.07136327,70459.0,70453.0,0.07096921]
[1771149233159,0.07136327,70459.0,70454.0,0.07096811]
[1771149233395,0.0004,70459.0,70454.0,0.07092811]
[1771149233719,0.07136379,70459.0,70453.0,0.07096926]
[1771149234339,0.02396287,70458.0,70448.0,0.07097433]
[1771149234551,0.02396287,70452.0,70448.0,0.07110413]
[1771149235346,0.09493356,70452.0,70448.0,0.00012983]
[1771149236449,0.02396287,70452.0,70448.0,0.00012983]
[1771149236648,0.02396287,70452.0,70448.0,0.07110378]
[1771149238569,0.07096941,70453.0,70448.0,0.07095534]
[1771149238749,0.00014,71871.0,70448.0,0.28389568]
[1771149238750,0.02436287,70459.0,70448.0,0.28389568]
[1771149238962,0.07136429,70458.0,70449.0,0.07097332]
[1771149239158,0.07096565,70457.0,70452.0,0.07096981]
[1771149239363,0.09492852,70457.0,70452.0,0.07096981]
[1771149239923,0.02396287,70456.0,70452.0,0.07096981]
[1771149240124,0.07149412,70458.0,70452.0,0.07096981]
[1771149240314,0.0244927,70458.0,70453.0,0.07096913]
[1771149240514,0.07096561,70457.0,70452.0,0.07096981]
[1771149240754,0.00052983,70458.0,70454.0,0.07096823]
[1771149240880,0.00052983,70458.0,70456.0,0.07096586]
[1771149241227,0.00052983,70458.0,70454.0,0.07096799]
[1771149241800,0.00052983,70458.0,70455.0,0.07096722]
[1771149242300,0.00052983,70458.0,70457.0,0.07096526]
[1771149242926,0.00052983,70458.0,70451.0,0.07097131]
[1771149243228,0.00052983,70458.0,70454.0,0.07096734]
[1771149245412,0.00052983,70458.0,70455.0,0.07096706]
[1771149245613,0.00052983,70458.0,70456.0,0.07096619]
[1771149245814,0.0006169,70461.0,70450.0,0.28388733]
[1771149245815,0.07135579,70467.0,70461.0,0.07096023]
[1771149246032,0.07135621,70466.0,70461.0,0.07096023]
[1771149246231,0.0004,70466.0,70456.0,0.60481286]
[1771149246436,0.0004,70466.0,70463.0,0.07095839]
[1771149246642,0.0004,70466.0,70464.0,0.07095789]
[1771149246852,0.0004,70466.0,70463.0,0.07095839]
[1771149247115,0.0004,70466.0,70462.0,0.07095855]
[1771149247296,0.0004,70466.0,70449.0,0.42583523]
[1771149247498,0.0004,70466.0,70450.0,0.00012983]
[1771149247499,0.11878432,70454.0,70450.0,0.00012983]
[1771149247722,0.60485286,70460.0,70422.0,0.07099856]
[1771149247723,0.07099014,70433.0,70422.0,0.07099856]
[1771149247931,0.4308,70453.0,70419.0,0.0714202]
[1771149247932,0.07099436,70429.0,70419.0,0.0714202]
[1771149248054,0.07098955,70433.0,70423.0,0.09461844]
[1771149248254,0.0709931,70430.0,70422.0,0.02361924]
[1771149248461,0.07099518,70428.0,70422.0,0.02374902]
[1771149249688,0.56774819,70454.0,70425.0,0.07099651]
[1771149249873,0.02396287,70444.0,70427.0,0.12635274]
[1771149250076,0.07099096,70432.0,70427.0,0.02361924]
[1771149250305,0.07099007,70434.0,70427.0,0.02361924]
[1771149250512,0.28390332,70447.0,70426.0,0.02361924]
[1771149250708,0.07098504,70438.0,70432.0,0.02361924]
[1771149250932,0.07098578,70437.0,70432.0,0.02361924]
[1771149251096,0.07098359,70439.0,70432.0,0.09460968]
[1771149251928,0.0709855,70437.0,70432.0,0.02361924]
[1771149252348,0.07098446,70438.0,70432.0,0.02361924]
[1771149252861,0.07098446,70438.0,70428.0,0.28397602]
[1771149252862,0.0004,70467.0,70428.0,0.6810168]
[1771149253055,0.0709795,70443.0,70436.0,0.09460372]
[1771149253231,0.07097869,70444.0,70437.0,0.07098525]
[1771149253835,0.07097974,70443.0,70437.0,0.07098525]
[1771149254254,0.07097974,70443.0,70436.0,0.09460554]
[1771149254425,0.07098076,70442.0,70436.0,0.09460554]
[1771149255108,0.0709805,70442.0,70436.0,0.09460554]
[1771149255425,0.07098383,70439.0,70436.0,0.02361924]
[1771149255629,0.07098383,70439.0,70433.0,0.41090936]
[1771149257281,0.0709808,70442.0,70436.0,0.07098624]
[1771149257736,0.28389516,70449.0,70433.0,0.33992]
[1771149257940,0.09421164,70457.0,70441.0,0.07098138]
[1771149258264,0.07097658,70446.0,70441.0,0.02465501]
[1771149258443,0.07097598,70447.0,70441.0,0.09563639]
[1771149258620,0.07097662,70446.0,70440.0,0.07098081]
[1771149259222,0.07097598,70447.0,70440.0,0.07098081]
[1771149259223,0.07097598,70447.0,70441.0,0.07098115]
[1771149259421,0.07097666,70446.0,70440.0,0.07098081]
[1771149259638,0.07097666,70446.0,70441.0,0.07098128]
[1771149260018,0.07097598,70447.0,70441.0,0.07098128]
[1771149260499,0.07097592,70448.0,70442.0,0.07098036]
[1771149260715,0.07097585,70447.0,70441.0,0.07098128]
[1771149260935,0.0709792,70444.0,70439.0,6e-05]
[1771149261150,0.0709805,70442.0,70439.0,6e-05]
[1771149261370,0.07098138,70441.0,70440.0,6e-05]
[1771149262269,0.0709805,70442.0,70440.0,6e-05]
[1771149262925,0.07098138,70441.0,70440.0,6e-05]
[1771149263136,0.0709805,70442.0,70440.0,6e-05]
[1771149263322,0.07098138,70441.0,70440.0,6e-05]
[1771149263959,0.02324537,70442.0,70436.0,0.0002]
[1771149264205,0.13287915,70442.0,70436.0,0.0002]
[1771149264416,0.02324537,70439.0,70436.0,0.0002]
[1771149264867,0.07098743,70435.0,70434.0,0.07098844]
[1771149265111,0.03604854,70435.0,70434.0,0.07098844]
[1771149265309,0.07098795,70435.0,70433.0,0.3272856]
[1771149265528,0.07098684,70436.0,70433.0,0.3272856]
[1771149266722,0.02324537,70445.0,70433.0,0.3272856]
[1771149266920,0.07098331,70440.0,70434.0,0.07098814]
[1771149267126,0.07098392,70439.0,70434.0,0.147]
[1771149268530,0.07098446,70438.0,70434.0,0.147]
[1771149268737,0.28391346,70446.0,70433.0,0.39827444]
[1771149268738,0.07098844,70434.0,70433.0,0.3272856]
[1771149268852,0.07098813,70435.0,70433.0,0.3272856]
[1771149269054,0.07098844,70434.0,70433.0,0.3272856]
[1771149269709,0.07098844,70434.0,70432.0,0.0002]
[1771149270690,0.07098945,70433.0,70432.0,0.0002]
[1771149271220,0.09423482,70433.0,70432.0,0.0002]
[1771149271414,1e-08,70431.0,70430.0,0.33899017]
[1771149271825,0.07099055,70432.0,70430.0,0.33899017]
[1771149272003,0.02324537,70431.0,70428.0,0.0002]
[1771149272208,0.07099179,70431.0,70428.0,0.0002]
[1771149272411,0.02324537,70430.0,70428.0,0.0002]
[1771149273742,0.02308201,70430.0,70428.0,0.0002]
[1771149275358,0.07098915,70435.0,70428.0,0.07119419]
[1771149275524,0.07098915,70435.0,70429.0,0.07099289]
[1771149275724,0.07098905,70434.0,70429.0,0.07099332]
[1771149275927,0.07098905,70434.0,70428.0,0.07119285]
[1771149276943,0.07098915,70435.0,70429.0,0.07099294]
[1771149277138,0.07098915,70435.0,70428.0,0.07119285]
[1771149277886,0.07098886,70434.0,70428.0,0.07119285]
[1771149278290,0.07098667,70436.0,70429.0,0.07099348]
[1771149278495,0.0709876,70435.0,70430.0,0.07099191]
[1771149278679,0.07098848,70434.0,70429.0,0.07099348]
[1771149281388,0.0709876,70435.0,70430.0,0.07099237]
[1771149281800,0.07098868,70434.0,70429.0,0.07099348]
[1771149282512,0.07098868,70434.0,70429.0,0.07119348]
[1771149283137,0.07098868,70434.0,70430.0,0.07099244]
[1771149283576,0.0709876,70435.0,70430.0,0.07099244]
[1771149284119,0.0709876,70435.0,70428.0,0.00016]
[1771149284120,0.0709876,70435.0,70428.0,0.07099449]
[1771149284345,0.0709876,70435.0,70430.0,0.07099202]
[1771149284664,0.0709867,70436.0,70430.0,0.07099202]
[1771149284887,0.07098777,70435.0,70429.0,0.07099332]
[1771149285494,0.07098851,70434.0,70429.0,0.07099332]
[1771149286564,0.07098777,70435.0,70429.0,0.07099332]
[1771149288694,0.07098693,70437.0,70430.0,0.07099208]
[1771149288838,0.0709867,70436.0,70430.0,0.07099208]
[1771149289397,0.07098745,70435.0,70430.0,0.07099208]
[1771149289613,0.0709867,70436.0,70430.0,0.07099208]
[1771149289750,0.07098745,70435.0,70429.0,0.07099187]
[1771149290347,0.07098745,70435.0,70430.0,0.07099246]
[1771149290772,0.07138745,70435.0,70430.0,0.07099246]
[1771149291173,0.07138745,70435.0,70429.0,0.07099187]
[1771149292392,0.07098886,70434.0,70428.0,0.070994]
[1771149292821,0.07098952,70433.0,70427.0,0.07099382]
[1771149293268,0.07098952,70433.0,70428.0,0.07095447]
[1771149294229,0.07098952,70433.0,70428.0,0.07099445]
[1771149296168,0.0709902,70434.0,70428.0,0.07099445]
[1771149297297,0.07099088,70432.0,70427.0,0.07099523]
[1771149297433,0.07099088,70432.0,70427.0,0.07099544]
[1771149297638,0.07099088,70432.0,70426.0,0.147]
[1771149297891,0.07099088,70432.0,70426.0,0.21799603]
[1771149298508,0.07099088,70432.0,70427.0,0.07099537]
[1771149298860,0.07099088,70432.0,70426.0,0.21799603]
[1771149299446,0.07099348,70429.0,70428.0,0.0002]
[1771149299663,0.0709965,70426.0,70425.0,0.0002]
[1771149300050,0.14193277,70434.0,70422.0,0.00012978]
[1771149300051,0.74681766,70432.0,70422.0,0.00012978]
[1771149300268,0.14153277,70428.0,70418.0,0.147]
[1771149300473,0.07100092,70422.0,70418.0,0.147]
[1771149300592,0.14153277,70425.0,70416.0,0.147]
[1771149300808,0.17329663,70439.0,70416.0,0.147]
[1771149301006,0.07099648,70427.0,70420.0,0.60528489]
[1771149301224,0.07099202,70431.0,70420.0,0.02409834]
[1771149301441,0.07099202,70431.0,70425.0,0.07099733]
[1771149301620,0.07099206,70432.0,70426.0,0.07099641]
[1771149301854,0.07099175,70431.0,70426.0,0.07099641]
[1771149302016,0.0004,70434.0,70424.0,0.07099838]
[1771149302224,0.07099295,70430.0,70424.0,0.07099838]
[1771149302448,0.07099295,70430.0,70425.0,0.07099736]
[1771149302731,0.0004,70434.0,70420.0,0.60528489]
[1771149302732,0.0004,70434.0,70432.0,0.07098965]
[1771149303050,0.02255946,70440.0,70433.0,0.07098945]
[1771149303250,0.28393384,70439.0,70430.0,0.07099162]
[1771149303462,0.02291946,70435.0,70431.0,0.07099097]
[1771149303646,0.02291946,70435.0,70432.0,0.07098988]
[1771149303840,0.0004,70435.0,70432.0,0.07098988]
[1771149304895,0.0004,70435.0,70434.0,0.07098844]
[1771149305642,0.0004,70435.0,70433.0,0.07098927]
[1771149306046,0.0004,70435.0,70434.0,0.07098844]
[1771149306463,0.0004,70435.0,70433.0,0.07098927]
[1771149306707,0.0004,70435.0,70434.0,0.07098844]
[1771149307158,0.0004,70435.0,70426.0,0.16185363]
[1771149307159,0.0004,70443.0,70430.0,4e-05]
[1771149307290,0.0001194,70446.0,70438.0,0.02409834]
[1771149307896,0.0001194,70446.0,70443.0,0.07097862]
[1771149308091,0.0001194,70446.0,70444.0,0.07097751]
[1771149308303,0.0004,70449.0,70440.0,0.02409834]
[1771149308644,0.0004,70449.0,70447.0,0.07097509]
[1771149308814,0.02291946,70456.0,70440.0,0.02409834]
[1771149308815,4e-05,70460.0,70457.0,0.07096526]
[1771149309138,4e-05,70460.0,70457.0,0.07096525]
[1771149309436,4e-05,70460.0,70455.0,0.07096651]
[1771149309840,0.07100253,70460.0,70455.0,0.07096651]
[1771149310018,4e-05,70460.0,70455.0,0.07096651]
[1771149310223,4e-05,70460.0,70456.0,0.07096616]
[1771149313325,4e-05,70460.0,70458.0,0.07096397]
[1771149313488,4e-05,70460.0,70453.0,0.07096839]
[1771149313696,0.07096398,70459.0,70453.0,0.07096839]
[1771149313906,0.07140391,70460.0,70453.0,0.07096865]
[1771149314314,0.00044,70460.0,70452.0,0.07097009]
[1771149314492,0.07140288,70460.0,70454.0,0.07096819]
[1771149315108,0.07096451,70458.0,70453.0,0.07096871]
[1771149315311,0.07096338,70459.0,70453.0,0.07096871]
[1771149315517,0.07096338,70459.0,70454.0,0.07096804]
[1771149315939,0.07096338,70459.0,70453.0,0.07096871]
[1771149316372,0.07096338,70459.0,70454.0,0.07096801]
[1771149316614,0.07096338,70459.0,70454.0,0.07096828]
[1771149317017,0.07140405,70460.0,70454.0,0.07096828]
[1771149317493,0.07096329,70459.0,70454.0,0.07096828]
[1771149318456,0.0709633,70459.0,70454.0,0.07096828]
[1771149319107,0.07096549,70457.0,70452.0,0.0226451]
[1771149319310,0.07096549,70457.0,70451.0,0.07097066]
[1771149319509,0.07096335,70459.0,70452.0,0.0709703]
[1771149320035,0.07096335,70459.0,70453.0,0.07096885]
[1771149321086,0.07136335,70459.0,70453.0,0.07096885]
[1771149322039,0.07096607,70457.0,70451.0,0.07097068]
[1771149322258,0.07096607,70457.0,70452.0,0.07097023]
[1771149322775,0.07096607,70457.0,70452.0,0.09361533]
[1771149322987,0.07096658,70456.0,70452.0,0.0226451]
[1771149323132,0.07096658,70456.0,70451.0,0.07097068]
[1771149323733,0.07096658,70456.0,70450.0,0.07097062]
[1771149323956,0.07096732,70455.0,70449.0,0.21797164]
[1771149324168,0.02297329,70459.0,70449.0,0.147]
[1771149324345,0.07097232,70450.0,70448.0,0.33996]
[1771149324527,0.02542342,70449.0,70444.0,0.070978]
[1771149324749,0.07096929,70453.0,70443.0,0.07097783]
[1771149324954,0.07097353,70449.0,70444.0,0.07097795]
[1771149325372,0.07097294,70451.0,70445.0,0.07097731]
[1771149325592,0.0709728,70450.0,70444.0,0.07097795]
[1771149326053,0.0709728,70450.0,70445.0,0.07097726]
[1771149326455,0.02257329,70462.0,70445.0,0.0226451]
[1771149326659,0.07096534,70457.0,70451.0,0.07097056]
[1771149327168,0.07102179,70456.0,70451.0,0.07097056]
[1771149327377,5.5e-05,70456.0,70452.0,0.07096994]
[1771149327579,0.07136359,70459.0,70454.0,0.09361297]
[1771149327778,0.07136359,70459.0,70455.0,0.0226451]
[1771149328196,0.07096439,70458.0,70455.0,0.0226451]
[1771149328399,0.07136439,70458.0,70453.0,0.09361257]
[1771149328596,0.0004,70458.0,70454.0,0.07096823]
[1771149328915,0.0004,70458.0,70453.0,0.09361257]
[1771149329283,0.07136455,70458.0,70453.0,0.09361257]
[1771149329484,0.0709663,70456.0,70453.0,0.0226451]
[1771149329995,0.0709663,70456.0,70451.0,0.07097121]
[1771149330117,0.0709663,70456.0,70451.0,0.09361631]
[1771149331149,0.0709663,70456.0,70451.0,0.07097121]
[1771149331513,0.07096681,70457.0,70452.0,0.07096998]
[1771149331775,0.07096635,70456.0,70451.0,0.09361631]
[1771149333149,0.07096681,70457.0,70452.0,0.07096969]
[1771149333356,0.0004,70458.0,70453.0,0.07096876]
[1771149334255,0.00044,70460.0,70457.0,0.07096463]
[1771149334616,0.00044,70460.0,70456.0,0.07096627]
[1771149334617,0.00044,70460.0,70452.0,0.0226451]
[1771149335007,0.07096404,70459.0,70453.0,0.07096894]
[1771149335152,0.07140225,70460.0,70455.0,0.07096676]
[1771149335359,0.0709633,70459.0,70454.0,0.07096676]
[1771149335957,0.0713633,70459.0,70454.0,0.07096676]
[1771149341653,0.0004,70459.0,70454.0,0.07096676]
[1771149341854,0.07136338,70459.0,70454.0,0.07096676]
[1771149342683,0.0004,70459.0,70455.0,0.07096688]
[1771149345003,0.07136345,70459.0,70454.0,0.07096807]
[1771149345163,0.07136345,70459.0,70455.0,0.07096727]
[1771149345740,0.07096447,70458.0,70453.0,0.07096905]
[1771149345982,0.07136345,70459.0,70454.0,0.07096826]
[1771149346220,0.07096699,70456.0,70452.0,0.0002]
[1771149346415,0.07096526,70457.0,70452.0,0.07117015]
[1771149347487,0.07096526,70457.0,70452.0,0.0002]
[1771149347488,0.07096632,70456.0,70452.0,0.0002]
[1771149347888,0.07096526,70457.0,70452.0,0.07117005]
[1771149348947,0.07096633,70456.0,70452.0,0.0002]
[1771149349386,0.07096755,70455.0,70452.0,0.0002]
[1771149349761,0.07096755,70455.0,70454.0,0.0002]
[1771149352300,0.07096755,70455.0,70449.0,0.36265221]
[1771149352471,0.07096755,70455.0,70450.0,0.0709718]
[1771149353366,0.07096755,70455.0,70451.0,0.07097128]
[1771149353795,7.001e-05,70457.0,70456.0,0.07096627]
[1771149354132,0.0004,70463.0,70460.0,0.07096188]
[1771149354350,0.0004,70463.0,70462.0,0.07096023]
[1771149354578,0.0004,70463.0,70461.0,0.07096111]
[1771149354801,0.0004,70463.0,70462.0,0.07096023]
[1771149354992,0.0004,70463.0,70462.0,0.07081162]
[1771149355573,0.0004,70463.0,70458.0,0.02270961]
[1771149355932,0.0004,70463.0,70460.0,0.07096198]
[1771149356154,0.0004,70463.0,70460.0,0.07091803]
[1771149356752,0.0004,70463.0,70459.0,0.07096325]
[1771149357762,0.0004,70463.0,70460.0,0.07096205]
[1771149358258,0.28422148,70467.0,70458.0,0.02270961]
[1771149358259,0.0004,70467.0,70464.0,0.07095789]
[1771149358456,0.00052985,70467.0,70463.0,0.0709592]
[1771149358814,0.00052985,70467.0,70464.0,0.0708094]
[1771149359020,0.00052985,70467.0,70463.0,0.0709592]
[1771149359215,0.00052985,70467.0,70464.0,0.07095808]
[1771149360322,0.00052985,70467.0,70465.0,0.07095695]
[1771149360770,0.00052985,70467.0,70466.0,0.0709562]
[1771149363043,0.00052985,70467.0,70461.0,0.28384172]
[1771149363272,0.00052985,70467.0,70464.0,0.07095807]
[1771149363568,0.00052985,70467.0,70466.0,0.0709562]
[1771149363767,0.00052985,70467.0,70464.0,0.07095757]
[1771149363995,0.00052985,70467.0,70462.0,0.07096023]
[1771149364320,0.00052985,70467.0,70461.0,0.147]
[1771149364321,0.00052985,70467.0,70461.0,0.21796076]
[1771149364450,0.00052985,70467.0,70461.0,0.147]
[1771149364451,0.07095904,70464.0,70461.0,0.147]
[1771149364857,0.0709595,70463.0,70461.0,0.147]
[1771149365122,0.07095673,70466.0,70461.0,0.21796077]
[1771149365302,0.07148508,70467.0,70462.0,0.07095977]
[1771149365906,0.00052985,70467.0,70461.0,0.147]
[1771149366053,0.00052985,70467.0,70463.0,0.07095899]
[1771149366249,0.07148523,70467.0,70462.0,0.07095983]
[1771149366449,0.00052985,70467.0,70463.0,0.07095916]
[1771149367651,0.07148562,70467.0,70462.0,0.07095983]
[1771149368105,0.00052985,70467.0,70463.0,0.07095918]
[1771149368508,0.07148516,70467.0,70462.0,0.07095983]
[1771149368931,0.00052985,70467.0,70463.0,0.07095918]
[1771149371503,0.00052985,70467.0,70458.0,0.33996]
[1771149371504,0.00052985,70467.0,70466.0,0.0709562]
[1771149377821,0.00052985,70467.0,70465.0,0.07095676]
[1771149378029,0.00052985,70467.0,70466.0,0.0709562]
[1771149380164,0.00052985,70467.0,70466.0,0.07074814]
[1771149383331,0.00052985,70467.0,70463.0,0.0002]
[1771149383889,0.00052985,70467.0,70463.0,0.07115905]
[1771149386040,0.00052985,70467.0,70463.0,0.0002]
[1771149386249,0.07148535,70467.0,70463.0,0.0002]
[1771149386610,0.00052985,70467.0,70463.0,0.07115896]
[1771149389230,0.0714851,70467.0,70463.0,0.0002]
[1771149389419,0.00052985,70467.0,70463.0,0.07115915]
[1771149392393,0.07148512,70467.0,70463.0,0.07115915]
[1771149392594,0.00052985,70467.0,70463.0,0.07115915]
[1771149400608,0.07095643,70466.0,70463.0,0.0002]
[1771149400809,0.07148515,70467.0,70463.0,0.0002]
[1771149401359,0.07095644,70466.0,70463.0,0.0002]
[1771149402299,0.07148515,70467.0,70463.0,0.0002]
[1771149402499,0.00052985,70467.0,70463.0,0.07115892]
[1771149410153,0.07148505,70467.0,70463.0,0.07115892]
[1771149410435,0.00052985,70467.0,70463.0,0.07115892]
[1771149411501,0.00083345,70467.0,70463.0,0.07115892]
[1771149412756,0.07178866,70467.0,70463.0,0.07115892]
[1771149414583,0.07178866,70467.0,70463.0,0.0002]
[1771149419413,0.07095635,70466.0,70463.0,0.0002]
[1771149419957,0.07178866,70467.0,70463.0,0.0002]
[1771149420256,0.07095621,70466.0,70463.0,0.0002]
[1771149420407,0.02512406,70466.0,70455.0,0.0002]
[1771149420614,0.02512406,70466.0,70456.0,0.60466973]
[1771149420615,0.09577809,70465.0,70456.0,0.60466973]
[1771149420829,0.07095851,70464.0,70458.0,0.07096414]
[1771149421031,0.07096194,70461.0,70455.0,0.0711667]
[1771149421195,0.07096219,70462.0,70456.0,0.07096592]
[1771149421399,0.07126579,70462.0,70456.0,0.07096592]
[1771149421647,0.07126579,70462.0,70460.0,0.0002]